[Event "Titled Tuesday Blitz April 19 Early 2022"]
[White "D`Arruda, Ricardo D."]
[Black "Kaasen, Tor Fredrik"]
[WhiteFideId "100692"]
[BlackFideId "1516647"]
[WhiteElo "2413"]
[BlackElo "2335"]
[Result "0-1"]
[Round "08"]
[TimeControl "180+1"]
[Date "2022.04.19"]
[WhiteClock "0:00:20"]
[BlackClock "0:00:20"]

1. Nf3 {[%clk 0:02:52]}  Nf6 {[%clk 0:02:59]} 2. d4 {[%clk 0:02:50]}  g6 {[%clk 0:03:00]} 3. Nc3 {[%clk 0:02:48]}  d5 {[%clk 0:02:59]} 4. Bg5 {[%clk 0:02:47]}  Bg7 {[%clk 0:02:59]} 5. Bxf6 {[%clk 0:02:47]}  Bxf6 {[%clk 0:02:57]} 6. e4 {[%clk 0:02:47]}  dxe4 {[%clk 0:02:54]} 7. Nxe4 {[%clk 0:02:48]}  Bg7 {[%clk 0:02:54]} 8. Bc4 {[%clk 0:02:47]}  O-O {[%clk 0:02:54]} 9. c3 {[%clk 0:02:47]}  b6 {[%clk 0:02:43]} 10. O-O {[%clk 0:02:46]}  Bb7 {[%clk 0:02:44]} 11. Qe2 {[%clk 0:02:47]}  e6 {[%clk 0:02:35]} 12. Rad1 {[%clk 0:02:46]}  Nd7 {[%clk 0:02:33]} 13. Rfe1 {[%clk 0:02:38]}  a6 {[%clk 0:02:30]} 14. Ne5 {[%clk 0:02:36]}  Qe7 {[%clk 0:02:15]} 15. Nxd7 {[%clk 0:02:27]}  Qxd7 {[%clk 0:02:14]} 16. h4 {[%clk 0:02:19]}  h6 {[%clk 0:02:06]} 17. h5 {[%clk 0:02:18]}  g5 {[%clk 0:02:04]} 18. Nd2 {[%clk 0:01:58]}  Rfe8 {[%clk 0:02:02]} 19. Nf3 {[%clk 0:01:57]}  b5 {[%clk 0:01:22]} 20. Bb3 {[%clk 0:01:56]}  c5 {[%clk 0:01:20]} 21. Ne5 {[%clk 0:01:36]}  Qc7 {[%clk 0:01:18]} 22. Bc2 {[%clk 0:01:15]}  cxd4 {[%clk 0:01:15]} 23. cxd4 {[%clk 0:01:16]}  Rac8 {[%clk 0:01:08]} 24. Be4 {[%clk 0:01:15]}  Bxe5 {[%clk 0:01:05]} 25. dxe5 {[%clk 0:01:13]}  Red8 {[%clk 0:01:04]} 26. Bxb7 {[%clk 0:01:12]}  Qxb7 {[%clk 0:01:05]} 27. Rd6 {[%clk 0:01:10]}  Re8 {[%clk 0:00:47]} 28. Red1 {[%clk 0:01:09]}  Rc4 {[%clk 0:00:44]} 29. Rd7 {[%clk 0:00:44]}  Qe4 {[%clk 0:00:41]} 30. Qxe4 {[%clk 0:00:42]}  Rxe4 {[%clk 0:00:41]} 31. R7d6 {[%clk 0:00:39]}  Rxe5 {[%clk 0:00:39]} 32. Rxa6 {[%clk 0:00:39]}  Re2 {[%clk 0:00:40]} 33. b3 {[%clk 0:00:37]}  Rc8 {[%clk 0:00:41]} 34. Rd3 {[%clk 0:00:34]}  Rc1+ {[%clk 0:00:40]} 35. Kh2 {[%clk 0:00:33]}  Rxf2 {[%clk 0:00:40]} 36. Rf3 {[%clk 0:00:31]}  Rcc2 {[%clk 0:00:29]} 37. Rxf2 {[%clk 0:00:28]}  Rxf2 {[%clk 0:00:30]} 38. Ra5 {[%clk 0:00:26]}  Kg7 {[%clk 0:00:25]} 39. a3 {[%clk 0:00:24]}  Ra2 {[%clk 0:00:23]} 40. Kg3 {[%clk 0:00:21]}  f5 {[%clk 0:00:22]} 41. Kf3 {[%clk 0:00:21]}  Kf6 {[%clk 0:00:22]} 42. g3 {[%clk 0:00:21]}  g4+ {[%clk 0:00:21]} 43. Kf4 {[%clk 0:00:20]}  Re2 {[%clk 0:00:20]} 0-1


[Site "https://www.chess.com"]

[Event "Titled Tuesday Blitz April 19 Early 2022"]
[White "Dahlgren, James Allen"]
[Black "Balint, Vilmos"]
[WhiteFideId "22256873"]
[BlackFideId "718050"]
[WhiteElo "2099"]
[BlackElo "2059"]
[Result "0-1"]
[Round "08"]
[TimeControl "180+1"]
[Date "2022.04.19"]
[WhiteClock "0:00:15"]
[BlackClock "0:01:30"]

1. d3 {[%clk 0:03:00]}  e5 {[%clk 0:02:57]} 2. f4 {[%clk 0:03:01]}  exf4 {[%clk 0:02:41]} 3. Bxf4 {[%clk 0:03:00]}  d5 {[%clk 0:02:41]} 4. Nf3 {[%clk 0:03:01]}  Nf6 {[%clk 0:02:41]} 5. Nbd2 {[%clk 0:03:00]}  Be7 {[%clk 0:02:41]} 6. e4 {[%clk 0:02:59]}  dxe4 {[%clk 0:02:42]} 7. dxe4 {[%clk 0:02:59]}  O-O {[%clk 0:02:42]} 8. Bd3 {[%clk 0:02:59]}  b6 {[%clk 0:02:42]} 9. O-O {[%clk 0:02:59]}  Bb7 {[%clk 0:02:42]} 10. e5 {[%clk 0:02:58]}  Nd5 {[%clk 0:02:43]} 11. Be4 {[%clk 0:02:43]}  Ba6 {[%clk 0:02:13]} 12. c4 {[%clk 0:02:34]}  Nxf4 {[%clk 0:02:12]} 13. Bxa8 {[%clk 0:02:34]}  c6 {[%clk 0:02:11]} 14. b3 {[%clk 0:02:19]}  Qc7 {[%clk 0:02:10]} 15. Nd4 {[%clk 0:02:07]}  Ne6 {[%clk 0:01:44]} 16. Nxe6 {[%clk 0:01:54]}  fxe6 {[%clk 0:01:45]} 17. Rxf8+ {[%clk 0:01:53]}  Bxf8 {[%clk 0:01:46]} 18. Nf3 {[%clk 0:01:50]}  Nd7 {[%clk 0:01:45]} 19. Qe2 {[%clk 0:01:35]}  Qc8 {[%clk 0:01:44]} 20. Rd1 {[%clk 0:00:48]}  Bc5+ {[%clk 0:01:43]} 21. Kh1 {[%clk 0:00:48]}  Nf8 {[%clk 0:01:44]} 22. Bxc6 {[%clk 0:00:30]}  Qxc6 {[%clk 0:01:44]} 23. Rd8 {[%clk 0:00:31]}  Be7 {[%clk 0:01:39]} 24. Rb8 {[%clk 0:00:24]}  Qc7 {[%clk 0:01:37]} 25. Re8 {[%clk 0:00:24]}  Bb7 {[%clk 0:01:30]} 26. h3 {[%clk 0:00:15]}  Bc6 {[%clk 0:01:30]} 0-1


[Site "https://www.chess.com"]

[Event "Titled Tuesday Blitz April 19 Early 2022"]
[White "Derraugh, Geordie"]
[Black "Iskusnyh, Sergei"]
[WhiteFideId "2603950"]
[BlackFideId "4120027"]
[WhiteElo "2116"]
[BlackElo "2492"]
[Result "1-0"]
[Round "08"]
[TimeControl "180+1"]
[Date "2022.04.19"]
[WhiteClock "0:00:05"]
[BlackClock "0:00:11"]

1. e4 {[%clk 0:03:00]}  e6 {[%clk 0:02:59]} 2. d4 {[%clk 0:03:00]}  d5 {[%clk 0:03:00]} 3. Nd2 {[%clk 0:02:58]}  c5 {[%clk 0:02:59]} 4. Ngf3 {[%clk 0:02:57]}  cxd4 {[%clk 0:02:54]} 5. exd5 {[%clk 0:02:57]}  Qxd5 {[%clk 0:02:54]} 6. Bc4 {[%clk 0:02:58]}  Qd7 {[%clk 0:02:53]} 7. O-O {[%clk 0:02:58]}  Nc6 {[%clk 0:02:51]} 8. Nb3 {[%clk 0:02:59]}  a6 {[%clk 0:02:51]} 9. Nbxd4 {[%clk 0:02:59]}  Nxd4 {[%clk 0:02:50]} 10. Qxd4 {[%clk 0:03:00]}  Qxd4 {[%clk 0:02:44]} 11. Nxd4 {[%clk 0:03:00]}  Bd7 {[%clk 0:02:43]} 12. a4 {[%clk 0:02:57]}  Rc8 {[%clk 0:02:35]} 13. Bb3 {[%clk 0:02:56]}  Bc5 {[%clk 0:02:34]} 14. Be3 {[%clk 0:02:55]}  Nf6 {[%clk 0:02:33]} 15. h3 {[%clk 0:02:46]}  O-O {[%clk 0:02:28]} 16. Rfd1 {[%clk 0:02:46]}  Rfd8 {[%clk 0:02:28]} 17. Kf1 {[%clk 0:02:33]}  Be8 {[%clk 0:02:25]} 18. Ke2 {[%clk 0:02:31]}  Nd5 {[%clk 0:02:24]} 19. Bg5 {[%clk 0:02:20]}  Rd7 {[%clk 0:02:15]} 20. c3 {[%clk 0:02:20]}  h6 {[%clk 0:02:12]} 21. Bh4 {[%clk 0:02:14]}  Nf4+ {[%clk 0:02:09]} 22. Kf3 {[%clk 0:02:13]}  e5 {[%clk 0:01:42]} 23. Bg3 {[%clk 0:01:23]}  Nxh3 {[%clk 0:01:23]} 24. Ne6 {[%clk 0:01:15]}  Ng5+ {[%clk 0:01:01]} 25. Nxg5 {[%clk 0:01:12]}  hxg5 {[%clk 0:01:02]} 26. Bxe5 {[%clk 0:01:10]}  Re7 {[%clk 0:01:02]} 27. Bd6 {[%clk 0:01:01]}  Bc6+ {[%clk 0:01:00]} 28. Kg3 {[%clk 0:01:02]}  Bxd6+ {[%clk 0:00:58]} 29. Rxd6 {[%clk 0:01:02]}  Re2 {[%clk 0:00:58]} 30. Ra2 {[%clk 0:00:49]}  Kf8 {[%clk 0:00:53]} 31. Rd4 {[%clk 0:00:40]}  Rce8 {[%clk 0:00:46]} 32. Rg4 {[%clk 0:00:32]}  f6 {[%clk 0:00:45]} 33. Rb4 {[%clk 0:00:27]}  Rd8 {[%clk 0:00:39]} 34. Bc4 {[%clk 0:00:27]}  Red2 {[%clk 0:00:38]} 35. Ra1 {[%clk 0:00:27]}  f5 {[%clk 0:00:34]} 36. Rh1 {[%clk 0:00:21]}  Ke7 {[%clk 0:00:32]} 37. Re1+ {[%clk 0:00:09]}  Kd6 {[%clk 0:00:29]} 38. Re6+ {[%clk 0:00:08]}  Kc7 {[%clk 0:00:29]} 39. Rg6 {[%clk 0:00:09]}  f4+ {[%clk 0:00:28]} 40. Kg4 {[%clk 0:00:06]}  Rxf2 {[%clk 0:00:27]} 41. Rxg7+ {[%clk 0:00:06]}  Rd7 {[%clk 0:00:27]} 42. Rxd7+ {[%clk 0:00:05]}  Kxd7 {[%clk 0:00:27]} 43. Kxg5 {[%clk 0:00:06]}  Bxg2 {[%clk 0:00:27]} 44. Bf7 {[%clk 0:00:02]}  Ke7 {[%clk 0:00:19]} 45. Bh5 {[%clk 0:00:01]}  Bc6 {[%clk 0:00:19]} 46. Rxf4 {[%clk 0:00:02]}  Rxb2 {[%clk 0:00:18]} 47. Rb4 {[%clk 0:00:02]}  Kd6 {[%clk 0:00:17]} 48. Rxb2 {[%clk 0:00:02]}  Kc5 {[%clk 0:00:13]} 49. Bg4 {[%clk 0:00:02]}  Kc4 {[%clk 0:00:12]} 50. a5 {[%clk 0:00:03]}  Kxc3 {[%clk 0:00:11]} 51. Rb6 {[%clk 0:00:04]}  Kc4 {[%clk 0:00:11]} 52. Bc8 {[%clk 0:00:05]}  Kc5 {[%clk 0:00:11]} 53. Bxb7 {[%clk 0:00:05]}  Bb5 {[%clk 0:00:12]} 54. Bxa6 {[%clk 0:00:05]}  Ba4 {[%clk 0:00:11]} 55. Bb7 {[%clk 0:00:05]} 1-0


[Site "https://www.chess.com"]

[Event "Titled Tuesday Blitz April 19 Early 2022"]
[White "Dorokhin, Mykhailo"]
[Black "Avramidou, Anastasia"]
[WhiteFideId "14114178"]
[BlackFideId "4239873"]
[WhiteElo "2280"]
[BlackElo "2183"]
[Result "1-0"]
[Round "08"]
[TimeControl "180+1"]
[Date "2022.04.19"]
[WhiteClock "0:00:18"]
[BlackClock "0:00:16"]

1. d4 {[%clk 0:03:00]}  Nf6 {[%clk 0:02:59]} 2. Nf3 {[%clk 0:03:00]}  e6 {[%clk 0:02:59]} 3. Bg5 {[%clk 0:02:59]}  b6 {[%clk 0:02:59]} 4. e3 {[%clk 0:02:59]}  Be7 {[%clk 0:03:00]} 5. Be2 {[%clk 0:02:58]}  Bb7 {[%clk 0:03:00]} 6. O-O {[%clk 0:02:58]}  h6 {[%clk 0:03:01]} 7. Bh4 {[%clk 0:02:57]}  g5 {[%clk 0:03:02]} 8. Bg3 {[%clk 0:02:58]}  Ne4 {[%clk 0:03:03]} 9. Nfd2 {[%clk 0:02:56]}  Nxg3 {[%clk 0:03:02]} 10. hxg3 {[%clk 0:02:55]}  d6 {[%clk 0:03:03]} 11. Bf3 {[%clk 0:02:55]}  Qc8 {[%clk 0:03:02]} 12. Bxb7 {[%clk 0:02:54]}  Qxb7 {[%clk 0:03:03]} 13. Qf3 {[%clk 0:02:55]}  Qxf3 {[%clk 0:03:03]} 14. Nxf3 {[%clk 0:02:53]}  Nd7 {[%clk 0:03:04]} 15. a4 {[%clk 0:02:53]}  a5 {[%clk 0:03:03]} 16. Na3 {[%clk 0:02:52]}  O-O-O {[%clk 0:03:00]} 17. c3 {[%clk 0:02:51]}  Kb7 {[%clk 0:03:00]} 18. e4 {[%clk 0:02:50]}  h5 {[%clk 0:02:59]} 19. Nc4 {[%clk 0:02:44]}  g4 {[%clk 0:03:00]} 20. Nh4 {[%clk 0:02:43]}  Nf6 {[%clk 0:02:55]} 21. f3 {[%clk 0:02:42]}  gxf3 {[%clk 0:02:54]} 22. gxf3 {[%clk 0:02:41]}  Rhg8 {[%clk 0:02:54]} 23. Kf2 {[%clk 0:02:41]}  Rg5 {[%clk 0:02:37]} 24. Rh1 {[%clk 0:01:49]}  Rdg8 {[%clk 0:02:35]} 25. Rag1 {[%clk 0:01:48]}  Nd7 {[%clk 0:02:29]} 26. Rh3 {[%clk 0:01:43]}  c5 {[%clk 0:02:22]} 27. Ng2 {[%clk 0:01:38]}  cxd4 {[%clk 0:02:21]} 28. cxd4 {[%clk 0:01:39]}  Rc8 {[%clk 0:02:20]} 29. Nce3 {[%clk 0:01:39]}  Nf6 {[%clk 0:02:07]} 30. Nf4 {[%clk 0:01:36]}  b5 {[%clk 0:02:02]} 31. d5 {[%clk 0:01:29]}  bxa4 {[%clk 0:01:48]} 32. Ra1 {[%clk 0:01:27]}  Bd8 {[%clk 0:01:34]} 33. dxe6 {[%clk 0:01:26]}  Bb6 {[%clk 0:01:33]} 34. exf7 {[%clk 0:01:23]}  Nd7 {[%clk 0:01:24]} 35. Nd5 {[%clk 0:01:01]}  Rf8 {[%clk 0:01:06]} 36. f4 {[%clk 0:00:50]}  Rxf7 {[%clk 0:01:06]} 37. Rxa4 {[%clk 0:00:41]}  Nc5 {[%clk 0:01:00]} 38. Nxb6 {[%clk 0:00:39]}  Kxb6 {[%clk 0:00:59]} 39. Rd4 {[%clk 0:00:38]}  Kc6 {[%clk 0:00:46]} 40. Nc4 {[%clk 0:00:37]}  Rg6 {[%clk 0:00:46]} 41. Nxa5+ {[%clk 0:00:36]}  Kb5 {[%clk 0:00:46]} 42. Nc4 {[%clk 0:00:36]}  Kc6 {[%clk 0:00:44]} 43. Rxh5 {[%clk 0:00:34]}  Re7 {[%clk 0:00:44]} 44. Kf3 {[%clk 0:00:32]}  Nb3 {[%clk 0:00:38]} 45. Rd1 {[%clk 0:00:30]}  Rb7 {[%clk 0:00:36]} 46. f5 {[%clk 0:00:25]}  Rf6 {[%clk 0:00:36]} 47. g4 {[%clk 0:00:24]}  Kc5 {[%clk 0:00:20]} 48. g5 {[%clk 0:00:23]}  Rf8 {[%clk 0:00:20]} 49. Nxd6 {[%clk 0:00:23]}  Rd7 {[%clk 0:00:20]} 50. e5 {[%clk 0:00:22]}  Nd4+ {[%clk 0:00:20]} 51. Rxd4 {[%clk 0:00:21]}  Kxd4 {[%clk 0:00:20]} 52. Kf4 {[%clk 0:00:22]}  Kd5 {[%clk 0:00:19]} 53. g6 {[%clk 0:00:21]}  Rb8 {[%clk 0:00:19]} 54. f6 {[%clk 0:00:21]}  Rb4+ {[%clk 0:00:19]} 55. Kf5 {[%clk 0:00:21]}  Rxb2 {[%clk 0:00:20]} 56. g7 {[%clk 0:00:20]}  Rf2+ {[%clk 0:00:21]} 57. Kg6 {[%clk 0:00:20]}  Rd8 {[%clk 0:00:20]} 58. f7 {[%clk 0:00:19]}  Ke6 {[%clk 0:00:17]} 59. g8=Q {[%clk 0:00:18]}  Rg2+ {[%clk 0:00:16]} 60. Rg5 {[%clk 0:00:18]} 1-0


[Site "https://www.chess.com"]

[Event "Titled Tuesday Blitz April 19 Early 2022"]
[White "Dubov, Daniil"]
[Black "Cherniaiev, Tykhon"]
[WhiteFideId "24126055"]
[BlackFideId "14182360"]
[WhiteElo "2791"]
[BlackElo "2289"]
[Result "1/2-1/2"]
[Round "08"]
[TimeControl "180+1"]
[Date "2022.04.19"]
[WhiteClock "0:00:05"]
[BlackClock "0:00:08"]

1. e4 {[%clk 0:03:00]}  c5 {[%clk 0:02:59]} 2. Nf3 {[%clk 0:03:00]}  e6 {[%clk 0:02:59]} 3. c3 {[%clk 0:02:59]}  d5 {[%clk 0:03:00]} 4. e5 {[%clk 0:02:59]}  Nc6 {[%clk 0:02:58]} 5. d4 {[%clk 0:02:58]}  Qc7 {[%clk 0:02:57]} 6. Na3 {[%clk 0:02:56]}  a6 {[%clk 0:02:57]} 7. Nc2 {[%clk 0:02:54]}  b5 {[%clk 0:02:52]} 8. Bd3 {[%clk 0:02:52]}  Bb7 {[%clk 0:02:47]} 9. O-O {[%clk 0:02:51]}  c4 {[%clk 0:02:47]} 10. Be2 {[%clk 0:02:50]}  Nge7 {[%clk 0:02:47]} 11. Ne3 {[%clk 0:02:48]}  h5 {[%clk 0:02:45]} 12. b3 {[%clk 0:02:43]}  g6 {[%clk 0:02:44]} 13. Ba3 {[%clk 0:02:37]}  Nf5 {[%clk 0:02:38]} 14. Bxf8 {[%clk 0:02:30]}  Nxe3 {[%clk 0:02:36]} 15. fxe3 {[%clk 0:02:28]}  Rxf8 {[%clk 0:02:36]} 16. Ng5 {[%clk 0:02:24]}  Ne7 {[%clk 0:02:34]} 17. Nh7 {[%clk 0:02:20]}  Nf5 {[%clk 0:01:48]} 18. Nxf8 {[%clk 0:01:52]}  Nxe3 {[%clk 0:01:48]} 19. Qc1 {[%clk 0:01:47]}  Nxf1 {[%clk 0:01:46]} 20. Nh7 {[%clk 0:01:47]}  cxb3 {[%clk 0:01:41]} 21. Nf6+ {[%clk 0:01:43]}  Kd8 {[%clk 0:01:40]} 22. Bxf1 {[%clk 0:01:37]}  Rc8 {[%clk 0:01:35]} 23. Qa3 {[%clk 0:01:31]}  Qc6 {[%clk 0:01:22]} 24. axb3 {[%clk 0:01:21]}  Kc7 {[%clk 0:01:20]} 25. b4 {[%clk 0:01:06]}  Kb8 {[%clk 0:01:18]} 26. Rc1 {[%clk 0:01:05]}  h4 {[%clk 0:01:13]} 27. Qb2 {[%clk 0:01:02]}  Ka8 {[%clk 0:01:11]} 28. Qf2 {[%clk 0:00:56]}  Rh8 {[%clk 0:01:07]} 29. Qf4 {[%clk 0:00:45]}  Qc8 {[%clk 0:01:04]} 30. Be2 {[%clk 0:00:43]}  h3 {[%clk 0:01:03]} 31. g3 {[%clk 0:00:41]}  Qc7 {[%clk 0:01:02]} 32. Qe3 {[%clk 0:00:40]}  Qe7 {[%clk 0:00:59]} 33. Bg4 {[%clk 0:00:30]}  Rc8 {[%clk 0:00:52]} 34. Bxh3 {[%clk 0:00:29]}  a5 {[%clk 0:00:52]} 35. bxa5 {[%clk 0:00:22]}  Qa3 {[%clk 0:00:51]} 36. Qe1 {[%clk 0:00:16]}  b4 {[%clk 0:00:51]} 37. Ra1 {[%clk 0:00:15]}  Qxc3 {[%clk 0:00:37]} 38. Qxc3 {[%clk 0:00:13]}  Rxc3 {[%clk 0:00:38]} 39. Bf1 {[%clk 0:00:09]}  b3 {[%clk 0:00:37]} 40. Rb1 {[%clk 0:00:09]}  Bc6 {[%clk 0:00:37]} 41. Ng4 {[%clk 0:00:08]}  Ba4 {[%clk 0:00:36]} 42. Nf2 {[%clk 0:00:07]}  Rc2 {[%clk 0:00:33]} 43. Nd3 {[%clk 0:00:07]}  Rc4 {[%clk 0:00:32]} 44. Nc5 {[%clk 0:00:07]}  Rxd4 {[%clk 0:00:32]} 45. Nxa4 {[%clk 0:00:06]}  Rxa4 {[%clk 0:00:32]} 46. Rxb3 {[%clk 0:00:06]}  Rxa5 {[%clk 0:00:33]} 47. Rf3 {[%clk 0:00:06]}  Ra7 {[%clk 0:00:33]} 48. h4 {[%clk 0:00:06]}  Kb8 {[%clk 0:00:34]} 49. Rc3 {[%clk 0:00:05]}  Ra4 {[%clk 0:00:31]} 50. Kf2 {[%clk 0:00:05]}  Re4 {[%clk 0:00:27]} 51. Rf3 {[%clk 0:00:05]}  Rxe5 {[%clk 0:00:24]} 52. Rxf7 {[%clk 0:00:05]}  Kc8 {[%clk 0:00:23]} 53. Rf4 {[%clk 0:00:05]}  Kd7 {[%clk 0:00:20]} 54. Rg4 {[%clk 0:00:04]}  Rf5+ {[%clk 0:00:17]} 55. Kg2 {[%clk 0:00:04]}  g5 {[%clk 0:00:16]} 56. hxg5 {[%clk 0:00:04]}  Ke7 {[%clk 0:00:15]} 57. g6 {[%clk 0:00:04]}  Rf8 {[%clk 0:00:13]} 58. Bd3 {[%clk 0:00:03]}  Rg8 {[%clk 0:00:12]} 59. Rh4 {[%clk 0:00:04]}  e5 {[%clk 0:00:12]} 60. Rh7+ {[%clk 0:00:05]}  Ke6 {[%clk 0:00:12]} 61. g4 {[%clk 0:00:04]}  e4 {[%clk 0:00:12]} 62. Bb5 {[%clk 0:00:04]}  Rxg6 {[%clk 0:00:12]} 63. Bd7+ {[%clk 0:00:05]}  Ke5 {[%clk 0:00:12]} 64. Bf5 {[%clk 0:00:05]}  Ra6 {[%clk 0:00:12]} 65. Kg3 {[%clk 0:00:06]}  Ra3+ {[%clk 0:00:12]} 66. Kh4 {[%clk 0:00:06]}  Kf4 {[%clk 0:00:12]} 67. Rf7 {[%clk 0:00:04]}  e3 {[%clk 0:00:10]} 68. Bg6+ {[%clk 0:00:03]}  Ke5 {[%clk 0:00:10]} 69. Re7+ {[%clk 0:00:04]}  Kf4 {[%clk 0:00:10]} 70. g5 {[%clk 0:00:02]}  Ra1 {[%clk 0:00:06]} 71. Rf7+ {[%clk 0:00:03]}  Ke5 {[%clk 0:00:06]} 72. Bh5 {[%clk 0:00:03]}  d4 {[%clk 0:00:05]} 73. Kg4 {[%clk 0:00:03]}  d3 {[%clk 0:00:04]} 74. Re7+ {[%clk 0:00:03]}  Kd4 {[%clk 0:00:04]} 75. Bg6 {[%clk 0:00:03]}  e2 {[%clk 0:00:04]} 76. Bxd3 {[%clk 0:00:02]}  Kxd3 {[%clk 0:00:05]} 77. g6 {[%clk 0:00:03]}  Rg1+ {[%clk 0:00:05]} 78. Kf5 {[%clk 0:00:02]}  e1=Q {[%clk 0:00:05]} 79. Rxe1 {[%clk 0:00:02]}  Rxe1 {[%clk 0:00:06]} 80. Kf6 {[%clk 0:00:03]}  Rg1 {[%clk 0:00:07]} 81. g7 {[%clk 0:00:04]}  Ke4 {[%clk 0:00:07]} 82. Kf7 {[%clk 0:00:03]}  Kf5 {[%clk 0:00:08]} 83. g8=Q {[%clk 0:00:04]}  Rxg8 {[%clk 0:00:08]} 84. Kxg8 {[%clk 0:00:05]} 1/2-1/2


[Site "https://www.chess.com"]

[Event "Titled Tuesday Blitz April 19 Early 2022"]
[White "Ezat, Mohamed"]
[Black "Sarkar, Justin"]
[WhiteFideId "10600906"]
[BlackFideId "2010011"]
[WhiteElo "2386"]
[BlackElo "2038"]
[Result "1-0"]
[Round "08"]
[TimeControl "180+1"]
[Date "2022.04.19"]
[WhiteClock "0:00:18"]
[BlackClock "0:00:01"]

1. d4 {[%clk 0:02:28]}  Nf6 {[%clk 0:02:54]} 2. c4 {[%clk 0:02:28]}  e6 {[%clk 0:02:53]} 3. Nc3 {[%clk 0:02:27]}  Bb4 {[%clk 0:02:52]} 4. e3 {[%clk 0:02:26]}  O-O {[%clk 0:02:50]} 5. a3 {[%clk 0:02:24]}  Bxc3+ {[%clk 0:02:48]} 6. bxc3 {[%clk 0:02:25]}  c5 {[%clk 0:02:48]} 7. Bd3 {[%clk 0:02:25]}  Nc6 {[%clk 0:02:44]} 8. Ne2 {[%clk 0:02:24]}  b6 {[%clk 0:02:37]} 9. O-O {[%clk 0:02:22]}  Ba6 {[%clk 0:02:34]} 10. e4 {[%clk 0:02:22]}  Ne8 {[%clk 0:02:33]} 11. Ng3 {[%clk 0:02:20]}  Na5 {[%clk 0:02:19]} 12. f4 {[%clk 0:02:16]}  Bxc4 {[%clk 0:02:01]} 13. Bxc4 {[%clk 0:01:27]}  Nxc4 {[%clk 0:02:02]} 14. f5 {[%clk 0:01:28]}  e5 {[%clk 0:01:49]} 15. f6 {[%clk 0:01:27]}  d6 {[%clk 0:00:47]} 16. Bg5 {[%clk 0:01:15]}  Qd7 {[%clk 0:00:37]} 17. fxg7 {[%clk 0:00:55]}  Nxg7 {[%clk 0:00:38]} 18. Bh6 {[%clk 0:00:52]}  f6 {[%clk 0:00:12]} 19. Bxg7 {[%clk 0:00:44]}  Kxg7 {[%clk 0:00:06]} 20. Nf5+ {[%clk 0:00:42]}  Kh8 {[%clk 0:00:06]} 21. Rf3 {[%clk 0:00:42]}  Rg8 {[%clk 0:00:05]} 22. Rh3 {[%clk 0:00:42]}  Rg6 {[%clk 0:00:04]} 23. Ra2 {[%clk 0:00:38]}  Rag8 {[%clk 0:00:03]} 24. Rf2 {[%clk 0:00:39]}  Rg5 {[%clk 0:00:02]} 25. Nh6 {[%clk 0:00:38]}  Qxh3 {[%clk 0:00:02]} 26. Nf7+ {[%clk 0:00:36]}  Kg7 {[%clk 0:00:02]} 27. Nxg5 {[%clk 0:00:37]}  Qe3 {[%clk 0:00:01]} 28. Ne6+ {[%clk 0:00:21]}  Kf7 {[%clk 0:00:01]} 29. dxe5 {[%clk 0:00:18]} 1-0


[Site "https://www.chess.com"]

[Event "Titled Tuesday Blitz April 19 Early 2022"]
[White "Fromm, Marius"]
[Black "Karolczuk, Iwo"]
[WhiteFideId "12993190"]
[BlackFideId "21816972"]
[WhiteElo "2545"]
[BlackElo "2656"]
[Result "1-0"]
[Round "08"]
[TimeControl "180+1"]
[Date "2022.04.19"]
[WhiteClock "0:00:07"]
[BlackClock "0:00:10"]

1. e4 {[%clk 0:03:00]}  c5 {[%clk 0:02:59]} 2. Nf3 {[%clk 0:03:01]}  d6 {[%clk 0:02:59]} 3. d4 {[%clk 0:03:01]}  cxd4 {[%clk 0:03:00]} 4. Nxd4 {[%clk 0:03:02]}  Nf6 {[%clk 0:03:00]} 5. Nc3 {[%clk 0:03:02]}  a6 {[%clk 0:03:01]} 6. g3 {[%clk 0:03:02]}  g6 {[%clk 0:02:59]} 7. Bg2 {[%clk 0:03:02]}  Bg7 {[%clk 0:03:00]} 8. O-O {[%clk 0:03:03]}  O-O {[%clk 0:03:00]} 9. h3 {[%clk 0:03:03]}  Nc6 {[%clk 0:03:01]} 10. Be3 {[%clk 0:03:03]}  Rb8 {[%clk 0:02:52]} 11. Nde2 {[%clk 0:02:57]}  b5 {[%clk 0:02:51]} 12. Nd5 {[%clk 0:02:33]}  Ne5 {[%clk 0:02:43]} 13. b3 {[%clk 0:02:30]}  Bb7 {[%clk 0:02:32]} 14. a4 {[%clk 0:02:20]}  Nxd5 {[%clk 0:02:21]} 15. exd5 {[%clk 0:02:21]}  b4 {[%clk 0:02:20]} 16. a5 {[%clk 0:02:08]}  Qc7 {[%clk 0:02:13]} 17. Bb6 {[%clk 0:02:05]}  Qc8 {[%clk 0:02:10]} 18. Ra4 {[%clk 0:02:02]}  Nd7 {[%clk 0:01:29]} 19. Ba7 {[%clk 0:01:58]}  Ra8 {[%clk 0:01:28]} 20. Be3 {[%clk 0:01:47]}  Qc7 {[%clk 0:01:18]} 21. Rxb4 {[%clk 0:01:46]}  Rfc8 {[%clk 0:01:18]} 22. c4 {[%clk 0:01:43]}  Rab8 {[%clk 0:01:15]} 23. Ba7 {[%clk 0:01:28]}  Ra8 {[%clk 0:01:12]} 24. Bb6 {[%clk 0:01:23]}  Nxb6 {[%clk 0:01:12]} 25. Rxb6 {[%clk 0:01:24]}  Ra7 {[%clk 0:01:05]} 26. Qd2 {[%clk 0:01:05]}  Ba8 {[%clk 0:01:02]} 27. Nd4 {[%clk 0:01:03]}  Qc5 {[%clk 0:00:59]} 28. Nc6 {[%clk 0:01:02]}  Bxc6 {[%clk 0:00:53]} 29. dxc6 {[%clk 0:01:03]}  Bd4 {[%clk 0:00:41]} 30. Rd1 {[%clk 0:01:01]}  e5 {[%clk 0:00:40]} 31. Bd5 {[%clk 0:00:51]}  Qa3 {[%clk 0:00:28]} 32. Rb7 {[%clk 0:00:46]}  Rc7 {[%clk 0:00:27]} 33. Rxa7 {[%clk 0:00:36]}  Bxa7 {[%clk 0:00:22]} 34. Qc3 {[%clk 0:00:23]}  Bd4 {[%clk 0:00:18]} 35. Rxd4 {[%clk 0:00:20]}  exd4 {[%clk 0:00:16]} 36. Qxd4 {[%clk 0:00:21]}  Qxa5 {[%clk 0:00:15]} 37. h4 {[%clk 0:00:15]}  Qe1+ {[%clk 0:00:15]} 38. Kg2 {[%clk 0:00:15]}  a5 {[%clk 0:00:13]} 39. Qb6 {[%clk 0:00:08]}  Rc8 {[%clk 0:00:12]} 40. Qb7 {[%clk 0:00:06]}  Qe8 {[%clk 0:00:10]} 41. Bxf7+ {[%clk 0:00:06]}  Qxf7 {[%clk 0:00:09]} 42. Qxc8+ {[%clk 0:00:06]}  Kg7 {[%clk 0:00:10]} 43. Qb7 {[%clk 0:00:07]} 1-0


[Site "https://www.chess.com"]

[Event "Titled Tuesday Blitz April 19 Early 2022"]
[White "Gabdrakhmanov, Azat"]
[Black "Nogerbek, Kazybek"]
[WhiteFideId "34189197"]
[BlackFideId "13710427"]
[WhiteElo "2279"]
[BlackElo "2466"]
[Result "1-0"]
[Round "08"]
[TimeControl "180+1"]
[Date "2022.04.19"]
[WhiteClock "0:00:25"]
[BlackClock "0:00:44"]

1. e4 {[%clk 0:03:00]}  e5 {[%clk 0:03:00]} 2. Nf3 {[%clk 0:03:01]}  Nc6 {[%clk 0:03:00]} 3. Bb5 {[%clk 0:03:01]}  a6 {[%clk 0:02:59]} 4. Ba4 {[%clk 0:03:00]}  Nf6 {[%clk 0:03:00]} 5. O-O {[%clk 0:03:00]}  Be7 {[%clk 0:02:57]} 6. Re1 {[%clk 0:03:00]}  b5 {[%clk 0:02:57]} 7. Bb3 {[%clk 0:03:00]}  O-O {[%clk 0:02:57]} 8. d4 {[%clk 0:03:00]}  d6 {[%clk 0:02:49]} 9. c3 {[%clk 0:02:59]}  Bb7 {[%clk 0:02:46]} 10. Nbd2 {[%clk 0:02:58]}  Re8 {[%clk 0:02:46]} 11. Nf1 {[%clk 0:02:50]}  h6 {[%clk 0:02:46]} 12. Ng3 {[%clk 0:02:50]}  Bf8 {[%clk 0:02:47]} 13. a4 {[%clk 0:02:48]}  Nb8 {[%clk 0:02:44]} 14. dxe5 {[%clk 0:02:37]}  Ng4 {[%clk 0:02:24]} 15. e6 {[%clk 0:02:07]}  fxe6 {[%clk 0:01:58]} 16. Ng5 {[%clk 0:02:04]}  hxg5 {[%clk 0:01:43]} 17. Qxg4 {[%clk 0:02:00]}  Qd7 {[%clk 0:01:43]} 18. Bxg5 {[%clk 0:01:43]}  Nc6 {[%clk 0:01:43]} 19. f4 {[%clk 0:01:27]}  bxa4 {[%clk 0:01:33]} 20. Bxa4 {[%clk 0:01:15]}  Qf7 {[%clk 0:01:33]} 21. Bb3 {[%clk 0:01:12]}  d5 {[%clk 0:01:26]} 22. e5 {[%clk 0:00:52]}  Bc8 {[%clk 0:01:14]} 23. Bc2 {[%clk 0:00:51]}  Rb8 {[%clk 0:01:08]} 24. Bh4 {[%clk 0:00:40]}  Rxb2 {[%clk 0:01:01]} 25. Bg6 {[%clk 0:00:40]}  Qd7 {[%clk 0:00:54]} 26. Qh5 {[%clk 0:00:35]}  Bc5+ {[%clk 0:00:51]} 27. Kh1 {[%clk 0:00:34]}  Ne7 {[%clk 0:00:51]} 28. Bxe7 {[%clk 0:00:26]}  Qxe7 {[%clk 0:00:44]} 29. Qh7+ {[%clk 0:00:25]} 1-0


[Site "https://www.chess.com"]